Workbook

Sheet P&G
A2: METSIMAHOLO LOCAL MUNICIPALITY
A3: BILL A: Preliminary & General
A4: Item | B4: Pay Ref | C4: Description | D4: Unit | E4: Qty | F4: Rate | G4: Amount
B5: SANS | C5: Schedule 1
B6: 1200 | C6: Preliminary and general
A7: 1.1 | C7: Fixed charge items
A8: 1.1.1 | B8: A8.3.1 | C8: Contractual requirements | D8: sum | E8: 1
C9: affecting the Contractor
B10: A8.3.2 | C10: The Contractor to provide
C11: the following
C12: items or as amended in the
C13: Tender Document :
A14: 1.1.2 | B14: PSAB 3.1 | C14: Name board (2 number) as | D14: sum | E14: 1
C15: specified in the Tender
C16: Document
A17: 1.1.3 | B17: PSA8.3.2.1 | C17: Furnished office for the | D17: sum | E17: 1
C18: Engineer's use
B19: PSAB3.2
A20: 1.1.4 | B20: PSAB 5.5 | C20: Survey assistant as & when | D20: sum | E20: 1
C21: required by the Engineer
A22: 1.1.5 | B22: PSAB 5.6 | C22: Survey equipments as & when | D22: sum | E22: 1
C23: required by the Engineer
A24: 1.1.6 | B24: PSAB4 | C24: Telephone facilities for the | D24: Prov | E24: 1 | F24: 26,000.00 | G24: 26,000.00
C25: Engineer
A26: 1.1.7 | B26: PSAB5.7 | C26: Personnel computer & digital | D26: sum | E26: 1
C27: camera
A28: 1.1.8 | B28: A8.3.2.2a | C28: Offices & storage facilities for | D28: sum | E28: 1
C29: the Contractor
A30: 1.1.9 | B30: A8.3.2.2b | C30: Workshops for the Contractor | D30: sum | E30: 1
C31: as required by The Contract
A32: 1.1.10 | B32: A8.3.2.2d | C32: Living accommodations for the | D32: sum | E32: 1
C33: Contractor's personnel
A34: 1.1.11 | B34: A8.3.2.2e | C34: Ablution & latrine facilities for | D34: sum | E34: 1
C35: the Contractor's personnel
A36: 1.1.12 | B36: A8.3.2.2f | C36: Supply tools & equipment’s as | D36: sum | E36: 1
C37: required by The Contract
A38: 1.1.13 | B38: A8.3.2.2g | C38: Water, electricity & | D38: sum | E38: 1
C39: communications as required
C40: by The Contract
C41: Other obligations by the
C42: Contractor :
A43: 1.1.14 | B43: A8.3.2.2h | C43: Deal with rain and/or ground | D43: sum | E43: 1
C44: water in all type of excavations
C45: on site
C46: as described in SANS 1 200 A
C47: section 5.5
A48: 1.1.15 | B48: A8.8.1 | C48: Establish access road to site | D48: sum | E48: 1
C49: where it is necessary
A50: 1.1.16 | B50: A8.3.3 | C50: Fixed charge obligations by | D50: sum | E50: 1
C51: the Contractor
A52: 1.1.17 | B52: A8.3.4 | C52: Removal of site establishment | D52: sum | E52: 1
A54: 1.2 | C54: Time related items
A55: 1.2.1 | B55: A8.4.1 | C55: Contractual requirements on a | D55: sum | E55: 1
C56: monthly bases affecting the
C57: Contractor
C58: The Contractor to maintain
C59: the following items or as
C60: amended in the
C61: Tender Document - for the
C62: duration of the Contract :
A63: 1.2.2 | B63: A8.4.2.2 | C63: All facilities on the site for the | D63: sum | E63: 1
C64: Engineer & for the Contractor
C65: Other obligations by the
C66: Contractor on a time bases
C67: for the duration
C68: of the Contract :
A69: 1.2.3 | B69: A8.4.3 | C69: Full time supervision of the site | D69: sum | E69: 1
C70: as specified in the Tender
C71: Document
A72: 1.2.4 | B72: A8.4.4 | C72: Company & head office | D72: sum | E72: 1
C73: administration costs pertaining
C74: to the Contract
A75: 1.2.5 | B75: A8.4.5 | C75: Other time related obligations | D75: sum | E75: 1
C76: by the Contractor
A78: 1.3 | C78: Provisional sums by the
C79: Engineer
A80: 1.3.1 | B80: PSA5.10.1 | C80: Provisional sum for various | D80: Prov | E80: 1 | F80: 200,000.00 | G80: 200,000.00
C81: tests requested by the
C82: Engineer
A83: 1.3.2 | B83: A8.8.2 | C83: Provision for traffic control as | D83: Prov | E83: 1 | F83: 30,000.00 | G83: 30,000.00
C84: requested by the Engineer
A85: 1.3.3 | B85: PSA5.10.1 | C85: Provisional sum for | D85: Prov | E85: 1 | F85: 120,000.00 | G85: 120,000.00
C86: community involvement/CLO
C87: payment
A88: 13.4 | B88: PSA5.10.1 | C88: Provisional sum for | D88: Prov | E88: 1 | F88: 100,000.00 | G88: 100,000.00
C89: Training of two (2) Students
A90: 1.3.5 | B90: A8.5b | C90: Contractor's overhead and | D90: %
C91: profit on Item 1.3.3
A93: TOTAL CARRIED TO SUMMARY PAGE

Sheet Mechanical
A2: METSIMAHOLO LOCAL MUNICIPALITY
A3: BILL B: MECHANICAL
A4: Item | B4: Pay Ref. | C4: Description | D4: Unit | E4: Qty | F4: Rate | G4: Amount
A5: 1. | C5: Suction Actuated Isolation Valves
A6: ! The Contractor must include for the following; Design, G.A. drawings, manufacture/supply, deliver/store, install, commission, up-hold during the 12-month defects liability period and training, of the equipment listed below. All work and equipment must comply with the specifications forming part of the contract document.
A7: 1.1 | C7: Design & G.A. Drawings. | D7: Sum | E7: 1
A9: 1.2 | C9: Supply/ Manufacture of Metal Seat Gate Valves Complete. | D9: Each | E9: 4
A11: 1.3 | C11: Supply/ Manufacture of Valve Actuator Complete. | D11: Each | E11: 4
A13: 1.4 | C13: Install Valves Complete. | D13: Each | E13: 4
A15: 1.5 | C15: Install Actuators Complete. | D15: Each | E15: 4
A17: 1.6 | C17: Commission Actuated Valves. | D17: Each | E17: 4
A19: TOTAL
A21: 2. | C21: Delivery Actuated Isolation Valves
A22: ! The Contractor must include for the following; Design, G.A. drawings, manufacture/supply, deliver/store, install, commission, up-hold during the 12-month defects liability period and training, of the equipment listed below. All work and equipment must comply with the specifications forming part of the contract document.
A23: 2.1 | C23: Design & G.A. Drawings. | D23: Sum | E23: 1
A25: 2.2 | C25: Supply/ Manufacture of Metal Seat Gate Valves Complete. | D25: Each | E25: 4
A27: 2.3 | C27: Supply/ Manufacture of Valve Actuator Complete. | D27: Each | E27: 4
A29: 2.4 | C29: Install Valves Complete. | D29: Each | E29: 4
A31: 2.5 | C31: Install Actuators Complete. | D31: Each | E31: 4
A33: 2.6 | C33: Commission Actuated Valves. | D33: Each | E33: 4
A35: TOTAL CARRIED TO NEXT PAGE

Sheet Mechanical 2
A2: METSIMAHOLO LOCAL MUNICIPALITY
A3: BILL B: MECHANICAL
A4: Item | B4: Pay Ref. | C4: Description | D4: Unit | E4: Qty | F4: Rate | G4: Amount
A5: Total carried from previous page
A6: 3. | C6: Delivery Check Valves
A7: ! The Contractor must include for the following; Design, G.A. drawings, manufacture/supply, deliver/store, install, commission, up-hold during the 12-month defects liability period and training, of the equipment listed below. All work and equipment must comply with the specifications forming part of the contract document.
A8: 3.1 | C8: Design & G.A. Drawings. | D8: Sum | E8: 1
A10: 3.2 | C10: Supply/ Manufacture of Nozzle Check Valves Complete. | D10: Each | E10: 4
A12: 3.3 | C12: Install Valves Complete. | D12: Each | E12: 4
A14: 3.4 | C14: Commission Valves. | D14: Each | E14: 4
A16: Total
A19: 4. | C19: Ventilation
A20: ! The Contractor must include for the following; Design, G.A. drawings, manufacture/supply, deliver/store, install, commission, up-hold during the 12-month defects liability period and training, of the equipment listed below. All work and equipment must comply with the specifications forming part of the contract document.
A21: 4.1 | C21: Design & G.A. Drawings. | D21: Sum | E21: 1
A23: 4.2 | C23: Supply/ Manufacture of Ventilation System Complete. | D23: Sum | E23: 1
A25: 4.3 | C25: Install of Ventilation System Complete. | D25: Sum | E25: 1
A27: 4.4 | C27: Commission of Ventilation System Complete. | D27: Sum | E27: 1
A28: TOTAL
A30: 5. | C30: Lifting Equipment
A31: ! The Contractor must include for the following; Design, G.A. drawings, manufacture/supply, deliver/store, install, commission, up-hold during the 12-month defects liability period and training, of the equipment listed below. All work and equipment must comply with the specifications forming part of the contract document.
A32: 5.1 | C32: Design & G.A. Drawings. | D32: Sum | E32: 1
A34: 5.2 | C34: Supply/ Manufacture of Electrical Hoists Complete. | D34: Each | E34: 2
A36: 5.3 | C36: Install of Electrical Hoists Complete. | D36: Each | E36: 2
A38: 5.4 | C38: Commission of Electrical Hoists Complete. | D38: Each | E38: 2
A40: TOTAL
A42: 6. | C42: Inflow Meter
A43: ! The Contractor must include for the following; Design, G.A. drawings, manufacture/supply, deliver/store, install, commission, up-hold during the 12-month defects liability period and training, of the equipment listed below. All work and equipment must comply with the specifications forming part of the contract document.
A44: 6.1 | C44: Design & G.A. Drawings. | D44: Sum | E44: 1
A46: 6.2 | C46: Supply/ Manufacture of Electromagnetic Flow Meter Complete. | D46: Each | E46: 1
A48: 6.3 | C48: Install of Electromagnetic Flow Meter Complete. | D48: Each | E48: 1
A50: 6.4 | C50: Commission of Electromagnetic Flow Meter Complete. | D50: Each | E50: 1
A52: 6.5 | C52: Provisional sum for modification to existing pipe work to fit flow meter. | D52: PC Sum | E52: 1 | F52: 350,000.00 | G52: 350,000.00
A54: 6.6 | C54: Provisional sum for modification to existing chamber to fit flow meter. | D54: PC Sum | E54: 1 | F54: 100,000.00 | G54: 100,000.00
A55: TOTAL
A56: TOTAL CARRIED TO SUMMARY PAGE

Sheet Mechanical Summary
A1: BILL B: Total Summary Page for Mechanical Works | D1: Amount
A2: 1 | B2: Suction Actuated Isolation Valves | D2: R
A3: 2 | B3: Delivery Actuated Isolation Valves | D3: R
A4: 3 | B4: Delivery Check Valves | D4: R
A5: 4 | B5: Ventilation | D5: R
A6: 5 | B6: Lifting Equipment | D6: R
A7: 6 | B7: Inflow Meter
B8: SUB-TOTAL BILL B to be Carried to Final Summary | D8: R

Sheet Electrical
A1: BILL C: ELECTRICAL EQUIPMENT
A2: Item | B2: Pay Ref. | C2: Description | D2: Unit | E2: Qty | F2: Rate | G2: Amount
A3: 1 | C3: Medium Voltage Switchgear
A5: =A3+0.1 -> 1.1 | B5: ="EPS-0"&A3 -> EPS-01 | C5: Remove existing Medium Voltage Switchgear, as specified in the project specification. | D5: each | E5: 2
B6: ! | C6: The item will be certified for payment when the drawings is approved by the engineer. The contractor will be liable for any costs incurred for equipment ordered or manufactured without approval of the drawings.
A8: =A5+0.1 -> 1.2 | B8: =B5 -> EPS-01 | C8: Design and complete panel layout drawings and line-diagrams for the Medium Voltage Switchgear, to submit for the approval of the engineer, as specified in the project specification. | D8: each | E8: 2
B9: ! | C9: The item will be certified for payment when the drawings is approved by the engineer. The contractor will be liable for any costs incurred for equipment ordered or manufactured without approval of the drawings.
A11: =A8+0.1 -> 1.3 | B11: =B8 -> EPS-01 | C11: Supply, manufacture, deliver and safe keeping of the Medium Voltage Switchgear and all ancillary equipment, as specified in the project specification and approved drawings and diagrams. | D11: each | E11: 2
B12: ! | C12: The equipment must be stored on-site, or an extended site, accepted by the client and the engineer. The item will be certified for payment when the equipment has been factory tested and inspected by the engineer.
A14: =A11+0.1 -> 1.4 | B14: =B11 -> EPS-01 | C14: Install and terminate the Medium Voltage Switchgear with all the ancillary equipment, as specified in the project specification. | D14: each | E14: 2
B15: ! | C15: The equipment must be installed and terminated if and when the civil and mechanical works has been completed and the contractor has permission from the engineer. The item will be certified for payment when the equipment has been inspected, after installation on-site, by the engineer.
A17: =A14+0.1 -> 1.5 | B17: =B14 -> EPS-01 | C17: Commission the Medium Voltage Switchgear and ancillary equipment, as specified in the project specification. | D17: each | E17: 2
B18: ! | C18: The equipment will be commissioned if and when the equipment can be put in operation for their intended use. The equipment will be dry commissioned before wet commissioning can commence. As part of the commissioning, the contractor shall submit his/her operation and maintenance manual for approval. The item will be certified for payment when the equipment has been wet commissioned, the equipment can operate and perform as per the project specification and their intended use and the operation and maintenance manual has been approved and accepted by the engineer.
A20: =A17+0.1 -> 1.6 | B20: =B17 -> EPS-01 | C20: Training of the plant operators on the Medium Voltage Switchgear and accessories. | D20: sum | E20: 1
B21: ! | C21: The contractor must facilitate a training session to the necessary plant personnel to instruct and explain the operation and maintenance of the equipment to them. The operation and maintenance manual will serve as the study material of this training session. The item will be certified for payment when the engineer has proof that this training was done.
C25: TOTAL CARRIED TO SUMMARY PAGE
A27: Client Witness 1 Witness 2 Contractor Witness 1 Witness 2

Sheet Electrical 2
A1: ='[1]C BoQ'!B90 -> BILL C: ELECTRICAL EQUIPMENT
A2: ='[1]C BoQ'!B91 -> Item | B2: ='[1]C BoQ'!C91 -> Pay Ref. | C2: ='[1]C BoQ'!D91 -> Description | D2: ='[1]C BoQ'!E91 -> Unit | E2: ='[1]C BoQ'!F91 -> Qty | F2: ='[1]C BoQ'!G91 -> Rate | G2: ='[1]C BoQ'!H91 -> Amount
A3: ='[1]C BoQ'!B92 -> 2 | C3: ='[1]C BoQ'!D92 -> 500kVA 11kV/400V Transformer
A5: ='[1]C BoQ'!B94 -> 2.1 | B5: ='[1]C BoQ'!C94 -> EPS-02 | C5: ='[1]C BoQ'!D94 -> Remove existing Transformer, as specified in the project specification. | D5: ='[1]C BoQ'!E94 -> each | E5: ='[1]C BoQ'!F94 -> 2
B6: ='[1]C BoQ'!C95 -> ! | C6: ='[1]C BoQ'!D95 -> The item will be certified for payment when the drawings is approved by the engineer. The contractor will be liable for any costs incurred for equipment ordered or manufactured without approval of the drawings.
A8: ='[1]C BoQ'!B97 -> 2.2 | B8: ='[1]C BoQ'!C97 -> EPS-02 | C8: ='[1]C BoQ'!D97 -> Design and complete layout drawings and line-diagrams for the 500kVA 11kV/400V Transformer, to submit for the approval of the engineer, as specified in the project specification. | D8: ='[1]C BoQ'!E97 -> each | E8: ='[1]C BoQ'!F97 -> 2
B9: ='[1]C BoQ'!C98 -> ! | C9: ='[1]C BoQ'!D98 -> The item will be certified for payment when the drawings is approved by the engineer. The contractor will be liable for any costs incurred for equipment ordered or manufactured without approval of the drawings.
A11: ='[1]C BoQ'!B100 -> 2.3 | B11: ='[1]C BoQ'!C100 -> EPS-02 | C11: ='[1]C BoQ'!D100 -> Supply, manufacture, deliver and safe keeping of the 500kVA 11kV/400V Transformer and all ancillary equipment, as specified in the project specification and approved drawings and diagrams. | D11: ='[1]C BoQ'!E100 -> each | E11: ='[1]C BoQ'!F100 -> 2
B12: ='[1]C BoQ'!C101 -> ! | C12: ='[1]C BoQ'!D101 -> The equipment must be stored on-site, or an extended site, accepted by the client and the engineer. The item will be certified for payment when the equipment has been factory tested and inspected by the engineer.
A14: ='[1]C BoQ'!B103 -> 2.4 | B14: ='[1]C BoQ'!C103 -> EPS-02 | C14: ='[1]C BoQ'!D103 -> Install and terminate the 500kVA 11kV/400V Transformer with all the ancillary equipment, as specified in the project specification. | D14: ='[1]C BoQ'!E103 -> each | E14: ='[1]C BoQ'!F103 -> 2
B15: ='[1]C BoQ'!C104 -> ! | C15: ='[1]C BoQ'!D104 -> The equipment must be installed and terminated if and when the civil and mechanical works has been completed and the contractor has permission from the engineer. The item will be certified for payment when the equipment has been inspected, after installation on-site, by the engineer.
A17: ='[1]C BoQ'!B106 -> 2.5 | B17: ='[1]C BoQ'!C106 -> EPS-02 | C17: ='[1]C BoQ'!D106 -> Commission the 500kVA 11kV/400V Transformer and ancillary equipment, as specified in the project specification. | D17: ='[1]C BoQ'!E106 -> each | E17: ='[1]C BoQ'!F106 -> 2
B18: ='[1]C BoQ'!C107 -> ! | C18: ='[1]C BoQ'!D107 -> The equipment will be commissioned if and when the equipment can be put in operation for their intended use. The equipment will be dry commissioned before wet commissioning can commence. As part of the commissioning, the contractor shall submit his/her operation and maintenance manual for approval. The item will be certified for payment when the equipment has been wet commissioned, the equipment can operate and perform as per the project specification and their intended use and the operation and maintenance manual has been approved and accepted by the engineer.
A20: ='[1]C BoQ'!B109 -> 2.6 | B20: ='[1]C BoQ'!C109 -> EPS-02 | C20: ='[1]C BoQ'!D109 -> Training of the plant operators on the 500kVA 11kV/400V Transformer and accessories. | D20: ='[1]C BoQ'!E109 -> sum | E20: ='[1]C BoQ'!F109 -> 1
B21: ='[1]C BoQ'!C110 -> ! | C21: ='[1]C BoQ'!D110 -> The contractor must facilitate a training session to the necessary plant personnel to instruct and explain the operation and maintenance of the equipment to them. The operation and maintenance manual will serve as the study material of this training session. The item will be certified for payment when the engineer has proof that this training was done.
C28: ='[1]C BoQ'!D117 -> TOTAL CARRIED TO SUMMARY PAGE
A30: ='[1]C BoQ'!B119 -> Client Witness 1 Witness 2 Contractor Witness 1 Witness 2

Sheet Electrical 3
A1: BILL C: ELECTRICAL EQUIPMENT
A2: Item | B2: Pay Ref. | C2: Description | D2: Unit | E2: Qty | F2: Rate | G2: Amount
A3: 3 | C3: Main MCC
A5: =A3+0.1 -> 3.1 | B5: ="EPS-0"&A3 -> EPS-03 | C5: Remove existing Main MCC, as specified in the project specification. | D5: sum | E5: 1
B6: ! | C6: The item will be certified for payment when the drawings is approved by the engineer. The contractor will be liable for any costs incurred for equipment ordered or manufactured without approval of the drawings.
A8: =A5+0.1 -> 3.2 | B8: ="EPS-0"&A3 -> EPS-03 | C8: Design and complete panel layout drawings and line-diagrams for the Main MCC, to submit for the approval of the engineer, as specified in the project specification. | D8: each | E8: 2
B9: ! | C9: The item will be certified for payment when the drawings is approved by the engineer. The contractor will be liable for any costs incurred for equipment ordered or manufactured without approval of the drawings.
A11: =A8+0.1 -> 3.3 | B11: =B8 -> EPS-03 | C11: Supply, manufacture, deliver and safe keeping of the Main MCC and all ancillary equipment, as specified in the project specification and approved drawings and diagrams. | D11: each | E11: 2
B12: ! | C12: The equipment must be stored on-site, or an extended site, accepted by the client and the engineer. The item will be certified for payment when the equipment has been factory tested and inspected by the engineer.
A14: =A11+0.1 -> 3.4 | B14: =B11 -> EPS-03 | C14: Install and terminate the Main MCC with all the ancillary equipment, as specified in the project specification. | D14: each | E14: 2
B15: ! | C15: The equipment must be installed and terminated if and when the civil and mechanical works has been completed and the contractor has permission from the engineer. The item will be certified for payment when the equipment has been inspected, after installation on-site, by the engineer.
A17: =A14+0.1 -> 3.5 | B17: =B14 -> EPS-03 | C17: Commission the Main MCC and ancillary equipment, as specified in the project specification. | D17: each | E17: 2
B18: ! | C18: The equipment will be commissioned if and when the equipment can be put in operation for their intended use. The equipment will be dry commissioned before wet commissioning can commence. As part of the commissioning, the contractor shall submit his/her operation and maintenance manual for approval. The item will be certified for payment when the equipment has been wet commissioned, the equipment can operate and perform as per the project specification and their intended use and the operation and maintenance manual has been approved and accepted by the engineer.
A20: =A17+0.1 -> 3.6 | B20: =B17 -> EPS-03 | C20: Training of the plant operators on the Main MCC and accessories. | D20: sum | E20: 1
B21: ! | C21: The contractor must facilitate a training session to the necessary plant personnel to instruct and explain the operation and maintenance of the equipment to them. The operation and maintenance manual will serve as the study material of this training session. The item will be certified for payment when the engineer has proof that this training was done.
A23: =A20+0.1 -> 3.7 | B23: =B20 -> EPS-03 | C23: Design and complete panel layout drawings and line-diagrams for the LV Bus Coupler, to submit for the approval of the engineer, as specified in the project specification. | D23: sum | E23: 1
B24: ! | C24: The item will be certified for payment when the drawings is approved by the engineer. The contractor will be liable for any costs incurred for equipment ordered or manufactured without approval of the drawings.
C31: TOTAL CARRIED TO SUMMARY PAGE

Sheet Electrical 4
A1: BILL C: ELECTRICAL EQUIPMENT
A2: Item | B2: Pay Ref. | C2: Description | D2: Unit | E2: Qty | F2: Rate | G2: Amount
A3: 4 | C3: Electrical Cables
C5: Allow for all the costs for the design, manufacture, testing, factory acceptance, supply, delivery, offloading and safe keeing, installation, testing and commissioning, of the following:
C7: Supply Cu PVC/SWA/PVC 600/1000V multicore cable with stranded conductors.
A9: 4.1 | B9: ="EPS-0"&A3 -> EPS-04 | C9: 2.5mm² x 4-core | D9: m | E9: 100
A11: 4.2 | B11: =B9 -> EPS-04 | C11: 4mm² x 4-core | D11: m | E11: 1 | G11: Rate only
A13: 4.3 | B13: =B11 -> EPS-04 | C13: 6mm² x 4-core | D13: m | E13: 100
A15: 4.4 | B15: =B13 -> EPS-04 | C15: 10mm² x 4-core | D15: m | E15: 1 | G15: Rate only
A17: 4.5 | B17: =B15 -> EPS-04 | C17: 16mm² x 4-core | D17: m | E17: 1 | G17: Rate only
A19: 4.6 | B19: =B17 -> EPS-04 | C19: 25mm² x 4-core | D19: m | E19: 10
A21: 4.7 | B21: =B19 -> EPS-04 | C21: 35mm² x 4-core | D21: m | E21: 1 | G21: Rate only
A23: 4.8 | B23: =B21 -> EPS-04 | C23: 50mm² x 4-core | D23: m | E23: 1 | G23: Rate only
A25: 4.9 | B25: =B21 -> EPS-04 | C25: 70mm² x 4-core | D25: m | E25: 400
A27: 4.1 | B27: =B23 -> EPS-04 | C27: 95mm² x 4-core | D27: m | E27: 1 | G27: Rate only
A29: 4.11 | B29: =B27 -> EPS-04 | C29: 120mm² x 4-core | D29: m | E29: 1 | G29: Rate only
A31: 4.12 | B31: =B29 -> EPS-04 | C31: 150mm² x 4-core | D31: m | E31: 1 | G31: Rate only
A33: 4.13 | B33: =B31 -> EPS-04 | C33: 185mm² x 4-core | D33: m | E33: 1 | G33: Rate only
A35: 4.14 | B35: =B33 -> EPS-04 | C35: 240mm² x 4-core | D35: m | E35: 1 | G35: Rate only
A37: 4.15 | B37: =B35 -> EPS-04 | C37: 300mm² x 4-core | D37: m | E37: 1 | G37: Rate only
A39: 4.16 | B39: =B37 -> EPS-04 | C39: 630mm² x 1-core | D39: m | E39: 800
C41: Supply Cu 6.35/11kV PILC screened cable
A43: 4.17 | B43: =B39 -> EPS-04 | C43: 25mm² x 3-core | D43: m | E43: 100
C53: TOTAL CARRIED TO SUMMARY PAGE
A55: Client Witness 1 Witness 2 Contractor Witness 1 Witness 2

Sheet Electrical 5
A1: BILL C: ELECTRICAL EQUIPMENT
A2: Item | B2: Pay Ref. | C2: Description | D2: Unit | E2: Qty | F2: Rate | G2: Amount
A3: 5 | C3: Electrical Cables: Terminations
C5: Allow for all the costs for the design, manufacture, testing, factory acceptance, supply, delivery, offloading and safe keeing, installation, testing and commissioning, of the following:
C7: Supply of Cable terminations for Cu PVC/SWA/PVC Sheathed 600/1000V multicore cables, complete, including gland shroud, lugs, number tags, etc and connection.
A9: 5.1 | B9: ="EPS-0"&A3 -> EPS-05 | C9: 2.5mm² x 4 core | D9: each | E9: 10
A11: 5.2 | B11: =B9 -> EPS-05 | C11: 4mm² x 4 core | D11: each | E11: 1 | G11: Rate only
A13: =_xlfn.CONCAT($B$210,".",#REF!) ->  | B13: =B11 -> EPS-05 | C13: 6mm² x 4 core | D13: each | E13: 6
A15: 5.3 | B15: =B13 -> EPS-05 | C15: 10mm² x 4 core | D15: each | E15: 1 | G15: Rate only
A17: 5.4 | B17: =B15 -> EPS-05 | C17: 16mm² x 4 core | D17: each | E17: 1 | G17: Rate only
A19: 5.5 | B19: =B17 -> EPS-05 | C19: 25mm² x 4 core | D19: each | E19: 4
A21: 5.6 | B21: =B19 -> EPS-05 | C21: 35mm² x 4 core | D21: each | E21: 1 | G21: Rate only
A23: 5.7 | B23: =B21 -> EPS-05 | C23: 50mm² x 4 core | D23: each | E23: 1 | G23: Rate only
A25: 5.8 | B25: =B21 -> EPS-05 | C25: 70mm² x 4 core | D25: each | E25: 20
A27: 5.9 | B27: =B23 -> EPS-05 | C27: 95mm² x 4 core | D27: each | E27: 1 | G27: Rate only
A29: 5.1 | B29: =B27 -> EPS-05 | C29: 120mm² x 4 core | D29: each | E29: 1 | G29: Rate only
A31: 5.11 | B31: =B29 -> EPS-05 | C31: 150mm² x 4 core | D31: each | E31: 1 | G31: Rate only
A33: 5.12 | B33: =B31 -> EPS-05 | C33: 185mm² x 4 core | D33: each | E33: 1 | G33: Rate only
A35: 5.13 | B35: =B33 -> EPS-05 | C35: 240mm² x 4 core | D35: each | E35: 1 | G35: Rate only
A37: 5.14 | B37: =B35 -> EPS-05 | C37: 300mm² x 4 core | D37: each | E37: 1 | G37: Rate only
A39: 5.15 | B39: =B37 -> EPS-05 | C39: 630mm² x 1 core | D39: each | E39: 20
C41: Supply of Cable terminations for Cu 6.35/11kV PILC screened cables, complete, including gland shroud, lugs, number tags, etc and connection.
A43: 5.16 | B43: =B39 -> EPS-05 | C43: 25mm² x 3-core | D43: m | E43: 4
C50: TOTAL CARRIED TO SUMMARY PAGE
A52: Client Witness 1 Witness 2 Contractor Witness 1 Witness 2

Sheet Electrical 6
A1: BILL C: ELECTRICAL EQUIPMENT
A2: Item | B2: Pay Ref. | C2: Description | D2: Unit | E2: Qty | F2: Rate | G2: Amount
A3: 6 | C3: Electrical Cables: BCEW
C5: Allow for all the costs for the design, manufacture, testing, factory acceptance, supply, delivery, offloading and safe keeing, installation, testing and commissioning, of the following:
C7: Supply of Bare Copper Earth Wire including terminations
A9: 6.1 | B9: ="EPS-0"&A3 -> EPS-06 | C9: 2.5mm² | D9: m | E9: 100
A11: 6.2 | B11: =B9 -> EPS-06 | C11: 4mm² | D11: m | E11: 100
A13: 6.3 | B13: =B11 -> EPS-06 | C13: 6mm² | D13: m | E13: 1 | G13: Rate only
A15: 6.4 | B15: =B13 -> EPS-06 | C15: 10mm² | D15: m | E15: 1 | G15: Rate only
A17: 6.5 | B17: =B15 -> EPS-06 | C17: 16mm² | D17: m | E17: 10
A19: 6.6 | B19: =B17 -> EPS-06 | C19: 25mm² | D19: m | E19: 1 | G19: Rate only
A21: 6.7 | B21: =B19 -> EPS-06 | C21: 35mm² | D21: m | E21: 400
A23: 6.8 | B23: =B21 -> EPS-06 | C23: 50mm² | D23: m | E23: 1 | G23: Rate only
A25: 6.9 | B25: =B21 -> EPS-06 | C25: 70mm² | D25: m | E25: 1 | G25: Rate only
A27: 6.1 | B27: =B23 -> EPS-06 | C27: 95mm² | D27: m | E27: 1 | G27: Rate only
A29: 6.11 | B29: =B27 -> EPS-06 | C29: 120mm² | D29: m | E29: 1 | G29: Rate only
A31: 6.12 | B31: =B29 -> EPS-06 | C31: 150mm² | D31: m | E31: 1 | G31: Rate only
A33: 6.13 | B33: =B31 -> EPS-06 | C33: 185mm² | D33: m | E33: 1 | G33: Rate only
A35: 6.14 | B35: =B33 -> EPS-06 | C35: 240mm² | D35: m | E35: 1 | G35: Rate only
A37: 6.15 | B37: =B35 -> EPS-06 | C37: 300mm² | D37: m | E37: 200
C40: TOTAL CARRIED TO SUMMARY PAGE
A42: Client Witness 1 Witness 2 Contractor Witness 1 Witness 2

Sheet Electrical 7
A1: BILL C: ELECTRICAL EQUIPMENT
A2: Item | B2: Pay Ref. | C2: Description | D2: Unit | E2: Qty | F2: Rate | G2: Amount
A3: 7 | C3: Excavations
C5: Excavate and set excavated material aside for reuse as filling for cable or sleeve trench not exceeding 1m deep
A7: 7.1 | B7: ="EPS-0"&A3 -> EPS-07 | C7: In earth | D7: m³ | E7: 25
A9: 7.2 | B9: =B7 -> EPS-07 | C9: In soft rock | D9: m³ | E9: 5
A11: 7.3 | B11: =B9 -> EPS-07 | C11: In rock | D11: m³ | E11: 1
A13: 7.4 | B13: =B11 -> EPS-07 | C13: Bedding material imported from off-site source (provisional) | D13: m³ | E13: 50
A15: 7.5 | B15: =B13 -> EPS-07 | C15: Danger tape - 400mm wide overlapping | D15: m | E15: 820
A17: 7.6 | B17: =B15 -> EPS-07 | C17: Cable marker with engraved steel plate | D17: each | E17: =ROUNDUP(E15/50,0) -> 17
A19: 7.7 | B19: =B17 -> EPS-07 | C19: Bonding of all extraneous conductive parts. | D19: sum | E19: 1
A21: 7.8 | B21: =B19 -> EPS-07 | C21: Labelling of Cables and Equipment | D21: sum | E21: 1
A23: 7.9 | B23: =B19 -> EPS-07 | C23: Testing and Commissioning | D23: sum | E23: 1
C30: TOTAL CARRIED TO SUMMARY PAGE
A32: Client Witness 1 Witness 2 Contractor Witness 1 Witness 2

Sheet Electrical 8
A1: BILL C: ELECTRICAL EQUIPMENT
A2: Item | B2: Pay Ref. | C2: Description | D2: Unit | E2: Qty | F2: Rate | G2: Amount
A3: 8 | C3: Electrical Cables Supports
A5: =A3+0.1 -> 8.1 | B5: ="EPS-0"&A3 -> EPS-08 | C5: Compile a cable route plan, electrical motor and cable schedule for all the Electrical cables Supports, to submit for the approval of the engineer, as specified in the project specification. | D5: sum | E5: 1
B6: ! | C6: The item will be certified for payment when the drawings & schedules is approved by the engineer. The contractor will be liable for any costs incurred for equipment ordered without approval of the drawings & schedules..
A8: =A5+0.1 -> 8.2 | B8: =B5 -> EPS-08 | C8: Supply, deliver and safe keeping of the Electrical cables Supports and all ancillary equipment, as specified in the project specification and approved drawings and schedules. | D8: sum | E8: 1
B9: ! | C9: The equipment must be stored on-site, or an extended site, accepted by the client and the engineer. The item will be certified for payment when the equipment has been inspected by the engineer.
A11: =A8+0.1 -> 8.3 | B11: =B8 -> EPS-08 | C11: Install and terminate the Electrical cables Supports with all the ancillary equipment, as specified in the project specification. | D11: sum | E11: 1
B12: ! | C12: The equipment must be installed and terminated if and when the civil and mechanical works has been completed and the contractor has permission from the engineer. The item will be certified for payment when the equipment has been inspected, after installation on-site, by the engineer.
A14: =A11+0.1 -> 8.4 | B14: =B11 -> EPS-08 | C14: Commission the Electrical cables Supports and ancillary equipment, as specified in the project specification. | D14: sum | E14: 1
B15: ! | C15: The equipment will be commissioned if and when the equipment can be put in operation for their intended use. The equipment will be dry commissioned before wet commissioning can commence. As part of the commissioning, the contractor shall submit his/her operation and maintenance manual for approval. The item will be certified for payment when the equipment has been wet commissioned, the equipment can operate and perform as per the project specification and their intended use and the operation and maintenance manual has been approved and accepted by the engineer.
C19: TOTAL CARRIED TO SUMMARY PAGE
A21: Client Witness 1 Witness 2 Contractor Witness 1 Witness 2

Sheet Electrical 9
A1: BILL C: ELECTRICAL EQUIPMENT
A2: Item | B2: Pay Ref. | C2: Description | D2: Unit | E2: Qty | F2: Rate | G2: Amount
A3: 9 | C3: Control and Instrumentation cables
A5: =A3+0.1 -> 9.1 | B5: ="EPS-0"&A3 -> EPS-09 | C5: Compile a cable route plan, electrical motor and cable schedule for all the Control and Instrumentation cables, to submit for the approval of the engineer, as specified in the project specification. | D5: sum | E5: 1
B6: ! | C6: The item will be certified for payment when the drawings & schedules is approved by the engineer. The contractor will be liable for any costs incurred for equipment ordered without approval of the drawings & schedules..
A8: =A5+0.1 -> 9.2 | B8: =B5 -> EPS-09 | C8: Supply, deliver and safe keeping of the Control and Instrumentation cables and all ancillary equipment, as specified in the project specification and approved drawings and schedules. | D8: sum | E8: 1
B9: ! | C9: The equipment must be stored on-site, or an extended site, accepted by the client and the engineer. The item will be certified for payment when the equipment has been inspected by the engineer.
A11: =A8+0.1 -> 9.3 | B11: =B8 -> EPS-09 | C11: Install and terminate the Control and Instrumentation cables with all the ancillary equipment, as specified in the project specification. | D11: sum | E11: 1
B12: ! | C12: The equipment must be installed and terminated if and when the civil and mechanical works has been completed and the contractor has permission from the engineer. The item will be certified for payment when the equipment has been inspected, after installation on-site, by the engineer.
A14: =A11+0.1 -> 9.4 | B14: =B11 -> EPS-09 | C14: Commission the Control and Instrumentation cables and ancillary equipment, as specified in the project specification. | D14: sum | E14: 1
B15: ! | C15: The equipment will be commissioned if and when the equipment can be put in operation for their intended use. The equipment will be dry commissioned before wet commissioning can commence. As part of the commissioning, the contractor shall submit his/her operation and maintenance manual for approval. The item will be certified for payment when the equipment has been wet commissioned, the equipment can operate and perform as per the project specification and their intended use and the operation and maintenance manual has been approved and accepted by the engineer.
C20: TOTAL CARRIED TO SUMMARY PAGE
A22: Client Witness 1 Witness 2 Contractor Witness 1 Witness 2

Sheet Electrical 10
A1: BILL C: ELECTRICAL EQUIPMENT
A2: Item | B2: Pay Ref. | C2: Description | D2: Unit | E2: Qty | F2: Rate | G2: Amount
A3: 10 | C3: Small Power & Lighting
A5: =A3+0.1 -> 10.1 | B5: ="EPS-0"&A3 -> EPS-010 | C5: Compile a schedule for the replacement of all the Small Power & Lighting, to submit for the approval of the engineer, as specified in the project specification. | D5: sum | E5: 1
B6: ! | C6: The item will be certified for payment when the drawings & schedules is approved by the engineer. The contractor will be liable for any costs incurred for equipment ordered without approval of the drawings & schedules..
A8: =A5+0.1 -> 10.2 | B8: =B5 -> EPS-010 | C8: Supply, deliver and safe keeping of the Small Power & Lighting and all ancillary equipment, as specified in the project specification and approved drawings and schedules. | D8: sum | E8: 1
B9: ! | C9: The equipment must be stored on-site, or an extended site, accepted by the client and the engineer. The item will be certified for payment when the equipment has been inspected by the engineer.
A11: =A8+0.1 -> 10.3 | B11: =B8 -> EPS-010 | C11: Install and terminate the Small Power & Lighting with all the ancillary equipment, as specified in the project specification. | D11: sum | E11: 1
B12: ! | C12: The equipment must be installed and terminated if and when the civil and mechanical works has been completed and the contractor has permission from the engineer. The item will be certified for payment when the equipment has been inspected, after installation on-site, by the engineer.
A14: =A11+0.1 -> 10.4 | B14: =B11 -> EPS-010 | C14: Commission the Small Power & Lighting and ancillary equipment, as specified in the project specification. | D14: sum | E14: 1
B15: ! | C15: The equipment will be commissioned if and when the equipment can be put in operation for their intended use. The equipment will be dry commissioned before wet commissioning can commence. As part of the commissioning, the contractor shall submit his/her operation and maintenance manual for approval. The item will be certified for payment when the equipment has been wet commissioned, the equipment can operate and perform as per the project specification and their intended use and the operation and maintenance manual has been approved and accepted by the engineer.
C18: TOTAL CARRIED TO SUMMARY PAGE
A20: Client Witness 1 Witness 2 Contractor Witness 1 Witness 2

Sheet Electrical 11
A1: BILL C: ELECTRICAL EQUIPMENT
A2: Item | B2: Pay Ref. | C2: Description | D2: Unit | E2: Qty | F2: Rate | G2: Amount
A3: 11 | C3: Programmable Logic Controllers
A5: =A3+0.1 -> 11.1 | B5: ="EPS-0"&A3 -> EPS-011 | C5: Supply, deliver and safe keeping of the Programmable Logic Controllers and all ancillary equipment including RIO and HMI, as specified in the project specification. | D5: sum | E5: 1
B6: ! | C6: The equipment must be stored on-site, or an extended site, accepted by the client and the engineer. The item will be certified for payment when the equipment has been inspected by the engineer.
A8: =A5+0.1 -> 11.2 | B8: =B5 -> EPS-011 | C8: Program & Install the Programmable Logic Controllers with all the ancillary equipment, as specified in the project specification. | D8: sum | E8: 1
B9: ! | C9: The equipment must be installed and terminated if and when the civil and mechanical works has been completed and the contractor has permission from the engineer. The item will be certified for payment when the equipment has been inspected, after installation on-site, by the engineer.
A11: =A8+0.1 -> 11.3 | B11: =B8 -> EPS-011 | C11: Commission the Programmable Logic Controllers and ancillary equipment, as specified in the project specification. | D11: sum | E11: 1
B12: ! | C12: The equipment will be commissioned if and when the equipment can be put in operation for their intended use. The equipment will be dry commissioned before wet commissioning can commence. As part of the commissioning, the contractor shall submit his/her operation and maintenance manual for approval. The item will be certified for payment when the equipment has been wet commissioned, the equipment can operate and perform as per the project specification and their intended use and the operation and maintenance manual has been approved and accepted by the engineer.
A14: =A11+0.1 -> 11.4 | B14: =B11 -> EPS-011 | C14: Training of the plant operators on the Programmable Logic Controllers and accessories. | D14: sum | E14: 1
B15: ! | C15: The contractor must facilitate a training session to the necessary plant personnel to instruct and explain the operation and maintenance of the equipment to them. The operation and maintenance manual will serve as the study material of this training session. The item will be certified for payment when the engineer has proof that this training was done.
C17: General PLC Components as in the PLCs above
A19: =A14+0.1 -> 11.5 | B19: =B14 -> EPS-011 | C19: 8 Analogue Inputs Card | D19: each | E19: 1 | G19: Rate only
A21: =A19+0.1 -> 11.6 | B21: =B19 -> EPS-011 | C21: 8 Analogue Outputs Card | D21: each | E21: 1 | G21: Rate only
A23: =A21+0.1 -> 11.7 | B23: =B21 -> EPS-011 | C23: 16 Digital Inputs Card | D23: each | E23: 1 | G23: Rate only
A25: =A23+0.1 -> 11.8 | B25: =B23 -> EPS-011 | C25: 16 Digital Outputs Card | D25: each | E25: 1 | G25: Rate only
A27: =A25+0.1 -> 11.9 | B27: =B25 -> EPS-011 | C27: Fieldbus interface | D27: each | E27: 1 | G27: Rate only
A29: 11.10 | B29: =B27 -> EPS-011 | C29: ASI bus interface | D29: each | E29: 1 | G29: Rate only
A31: 11.11 | B31: =B29 -> EPS-011 | C31: 2 port Ethernet Card | D31: each | E31: 1 | G31: Rate only
C37: TOTAL CARRIED TO SUMMARY PAGE
A39: Client Witness 1 Witness 2 Contractor Witness 1 Witness 2

Sheet Electrical 12
A1: BILL C: ELECTRICAL EQUIPMENT
A2: Item | B2: Pay Ref. | C2: Description | D2: Unit | E2: Qty | F2: Rate | G2: Amount
A3: 12 | C3: Telemetry
A5: =A3+0.1 -> 12.1 | B5: ="EPS-0"&A3 -> EPS-012 | C5: Supply, deliver and safe keeping of the Telemetry and all ancillary equipment, as specified in the project specification. | D5: sum | E5: 1
B6: ! | C6: The equipment must be stored on-site, or an extended site, accepted by the client and the engineer. The item will be certified for payment when the equipment has been inspected by the engineer.
A8: =A5+0.1 -> 12.2 | B8: =B5 -> EPS-012 | C8: Install and terminate the Telemetry with all the ancillary equipment, as specified in the project specification. | D8: sum | E8: 1
B9: ! | C9: The equipment must be installed and terminated if and when the civil and mechanical works has been completed and the contractor has permission from the engineer. The item will be certified for payment when the equipment has been inspected, after installation on-site, by the engineer.
A11: =A8+0.1 -> 12.3 | B11: =B8 -> EPS-012 | C11: Commission the Telemetry and ancillary equipment, as specified in the project specification. | D11: sum | E11: 1
B12: ! | C12: The equipment will be commissioned if and when the equipment can be put in operation for their intended use. The equipment will be dry commissioned before wet commissioning can commence. As part of the commissioning, the contractor shall submit his/her operation and maintenance manual for approval. The item will be certified for payment when the equipment has been wet commissioned, the equipment can operate and perform as per the project specification and their intended use and the operation and maintenance manual has been approved and accepted by the engineer.
A14: =A11+0.1 -> 12.4 | B14: =B11 -> EPS-012 | C14: Training of the plant operators on the Telemetry and accessories. | D14: sum | E14: 1
B15: ! | C15: The contractor must facilitate a training session to the necessary plant personnel to instruct and explain the operation and maintenance of the equipment to them. The operation and maintenance manual will serve as the study material of this training session. The item will be certified for payment when the engineer has proof that this training was done.
C19: TOTAL CARRIED TO SUMMARY PAGE
A21: Client Witness 1 Witness 2 Contractor Witness 1 Witness 2

Sheet Electrical 13
A1: BILL C: ELECTRICAL EQUIPMENT
A2: Item | B2: Pay Ref. | C2: Description | D2: Unit | E2: Qty | F2: Rate | G2: Amount
A3: 13 | C3: Scada
A5: =A3+0.1 -> 13.1 | B5: ="EPS-0"&A3 -> EPS-013 | C5: Supply, deliver and safe keeping of the Scada and all ancillary equipment and licenses, as specified in the project specification. | D5: sum | E5: 1
B6: ! | C6: The equipment must be stored on-site, or an extended site, accepted by the client and the engineer. The item will be certified for payment when the equipment has been inspected by the engineer.
A8: =A5+0.1 -> 13.2 | B8: =B5 -> EPS-013 | C8: Install and terminate the Scada with all the ancillary equipment, as specified in the project specification. | D8: sum | E8: 1
B9: ! | C9: The equipment must be installed and terminated if and when the civil and mechanical works has been completed and the contractor has permission from the engineer. The item will be certified for payment when the equipment has been inspected, after installation on-site, by the engineer.
A11: =A8+0.1 -> 13.3 | B11: =B8 -> EPS-013 | C11: Commission the Scada and ancillary equipment, as specified in the project specification. | D11: sum | E11: 1
B12: ! | C12: The equipment will be commissioned if and when the equipment can be put in operation for their intended use. The equipment will be dry commissioned before wet commissioning can commence. As part of the commissioning, the contractor shall submit his/her operation and maintenance manual for approval. The item will be certified for payment when the equipment has been wet commissioned, the equipment can operate and perform as per the project specification and their intended use and the operation and maintenance manual has been approved and accepted by the engineer.
A14: =A11+0.1 -> 13.4 | B14: =B11 -> EPS-013 | C14: Training of the plant operators on the Scada and accessories. | D14: sum | E14: 1
B15: ! | C15: The contractor must facilitate a training session to the necessary plant personnel to instruct and explain the operation and maintenance of the equipment to them. The operation and maintenance manual will serve as the study material of this training session. The item will be certified for payment when the engineer has proof that this training was done.
C20: TOTAL CARRIED TO SUMMARY PAGE
A22: Client Witness 1 Witness 2 Contractor Witness 1 Witness 2

Sheet Electrical 14
A1: BILL C: ELECTRICAL EQUIPMENT
A2: Item | B2: Pay Ref. | C2: Description | D2: Unit | E2: Qty | F2: Rate | G2: Amount
A3: 14 | C3: Flow Meter
A5: =A3+0.1 -> 14.1 | B5: ="EPS-0"&A3 -> EPS-014 | C5: Supply, deliver and safe keeping of the Flow Meter and all ancillary equipment, as specified in the project specification. | D5: sum | E5: 1
B6: ! | C6: The equipment must be stored on-site, or an extended site, accepted by the client and the engineer. The item will be certified for payment when the equipment has been inspected by the engineer.
A8: =A5+0.1 -> 14.2 | B8: =B5 -> EPS-014 | C8: Install and terminate the Flow Meter with all the ancillary equipment, as specified in the project specification. | D8: sum | E8: 1
B9: ! | C9: The equipment must be installed and terminated if and when the civil and mechanical works has been completed and the contractor has permission from the engineer. The item will be certified for payment when the equipment has been inspected, after installation on-site, by the engineer.
A11: =A8+0.1 -> 14.3 | B11: =B8 -> EPS-014 | C11: Commission the Flow Meter and ancillary equipment, as specified in the project specification. | D11: sum | E11: 1
B12: ! | C12: The equipment will be commissioned if and when the equipment can be put in operation for their intended use. The equipment will be dry commissioned before wet commissioning can commence. As part of the commissioning, the contractor shall submit his/her operation and maintenance manual for approval. The item will be certified for payment when the equipment has been wet commissioned, the equipment can operate and perform as per the project specification and their intended use and the operation and maintenance manual has been approved and accepted by the engineer.
A14: =A11+0.1 -> 14.4 | B14: =B11 -> EPS-014 | C14: Training of the plant operators on the Flow Meter and accessories. | D14: sum | E14: 1
B15: ! | C15: The contractor must facilitate a training session to the necessary plant personnel to instruct and explain the operation and maintenance of the equipment to them. The operation and maintenance manual will serve as the study material of this training session. The item will be certified for payment when the engineer has proof that this training was done.
C21: TOTAL CARRIED TO SUMMARY PAGE
A23: Client Witness 1 Witness 2 Contractor Witness 1 Witness 2

Sheet Electrical 15
A1: BILL C: ELECTRICAL EQUIPMENT
A2: Item | B2: Pay Ref. | C2: Description | D2: Unit | E2: Qty | F2: Rate | G2: Amount
A3: 15 | C3: Ultrasonic Level Meters
A5: =A3+0.1 -> 15.1 | B5: ="EPS-0"&A3 -> EPS-015 | C5: Supply, deliver and safe keeping of the Level Metes and all ancillary equipment, as specified in the project specification. | D5: each | E5: 1
B6: ! | C6: The equipment must be stored on-site, or an extended site, accepted by the client and the engineer. The item will be certified for payment when the equipment has been inspected by the engineer.
A8: =A5+0.1 -> 15.2 | B8: =B5 -> EPS-015 | C8: Install and terminate the Level Metes with all the ancillary equipment, as specified in the project specification. | D8: each | E8: 1
B9: ! | C9: The equipment must be installed and terminated if and when the civil and mechanical works has been completed and the contractor has permission from the engineer. The item will be certified for payment when the equipment has been inspected, after installation on-site, by the engineer.
A11: =A8+0.1 -> 15.3 | B11: =B8 -> EPS-015 | C11: Commission the Level Metes and ancillary equipment, as specified in the project specification. | D11: each | E11: 1
B12: ! | C12: The equipment will be commissioned if and when the equipment can be put in operation for their intended use. The equipment will be dry commissioned before wet commissioning can commence. As part of the commissioning, the contractor shall submit his/her operation and maintenance manual for approval. The item will be certified for payment when the equipment has been wet commissioned, the equipment can operate and perform as per the project specification and their intended use and the operation and maintenance manual has been approved and accepted by the engineer.
A14: =A11+0.1 -> 15.4 | B14: =B11 -> EPS-015 | C14: Training of the plant operators on the Level Metes and accessories. | D14: sum | E14: 1
B15: ! | C15: The contractor must facilitate a training session to the necessary plant personnel to instruct and explain the operation and maintenance of the equipment to them. The operation and maintenance manual will serve as the study material of this training session. The item will be certified for payment when the engineer has proof that this training was done.
C18: TOTAL CARRIED TO SUMMARY PAGE
A20: Client Witness 1 Witness 2 Contractor Witness 1 Witness 2

Sheet Electrical 16
A1: BILL C: ELECTRICAL EQUIPMENT
A2: Item | B2: Pay Ref. | C2: Description | D2: Unit | E2: Qty | F2: Rate | G2: Amount
A3: 16 | C3: Provisional Amounts
A5: =A3+0.1 -> 16.1 | B5: ="EPS-0"&A3 -> EPS-016 | C5: Provisional amount for Fire Detection as specified in the project specification. | D5: sum | E5: 1 | F5: 75,000.00 | G5: =F5*E5 -> 75,000.00
B6: ! | C6: The appointed contractor to provide quotations for the design, supply, deliver, install, commission and training of the system. The equipment must be stored on-site, or an extended site, accepted by the client and the engineer. The item will be certified for payment when the equipment has been inspected by the engineer.
A8: =A5+0.1 -> 16.2 | B8: =B5 -> EPS-016 | C8: Provisional amount for Intruder Alarm as specified in the project specification. | D8: sum | E8: 1 | F8: 50,000.00 | G8: =F8*E8 -> 50,000.00
B9: ! | C9: The appointed contractor to provide quotations for the design, supply, deliver, install, commission and training of the system. The equipment must be stored on-site, or an extended site, accepted by the client and the engineer. The item will be certified for payment when the equipment has been inspected by the engineer.
C16: TOTAL CARRIED TO SUMMARY PAGE
A18: Client Witness 1 Witness 2 Contractor Witness 1 Witness 2

Sheet Electrical Summary
A1: METSIMAHOLO LOCAL MUNICIPALITY
A2: UPGRADING OF SASOLBURG WATER PUMP STATION
A3: REFURBISHMENT of ELECTRICAL WORKS
A4: Contract No. MLM 01/2023/24
A5: ELECTRICAL BILL OF QUANTITIES
A6: ITEM | B6: DESCRIPTION | C6: Amount
A7: BILL C: ELECTRICAL EQUIPMENT
A8: 1. | B8: Medium Voltage Switchgear | C8: R
A9: 2. | B9: 500kVA 11kV/400V Transformer | C9: R
A10: 3. | B10: Main MCC | C10: R
A11: 4. | B11: Electrical Cables | C11: R
A12: 5. | B12: Electrical Cables: Terminations | C12: R
A13: 6. | B13: Electrical Cables: BCEW | C13: R
A14: 7. | B14: Excavations | C14: R
A15: 8. | B15: Electrical Cables Supports | C15: R
A16: 9. | B16: Control and Instrumentation cables | C16: R
A17: 10. | B17: Small Power & Lighting | C17: R
A18: 11. | B18: Programmable Logic Controllers | C18: R
A19: 12. | B19: Telemetry | C19: R
A20: 13. | B20: Scada | C20: R
A21: 14. | B21: Flow Meter | C21: R
A22: 15. | B22: Ultrasonic Level Meters | C22: R
A23: 16. | B23: Provisional Amounts | C23: R
B24: SUB-TOTAL Bill C to be Carried to Final Summary | C24: R

Sheet Building
A2: METSIMAHOLO LOCAL MUNICIPALITY
A3: BILL D: BUILDING & STRUCTURAL (2 Guard Houses)
A4: 2 | B4: Earthworks
A5: Item | B5: Description | C5: unit | D5: quant | E5: rate | F5: amount
A6: 2.1 | B6: Site clearance | C6: m2 | D6: 12000
A7: 2.2 | B7: Setting out | C7: 1 | D7: sum
A8: 2.3 | B8: Excavations | C8: m3 | D8: 20
A9: 2.4 | B9: Landscape the Site | C9: Prov | D9: 1 | E9: 250 000 | F9: 250 000.00
A10: 2.5 | B10: EO for hard rock | C10: m3 | D10: 50 | E10: rate only
A11: 2.6 | B11: EO for soft rock | C11: m3 | D11: 50 | E11: rate only
A13: 3 | B13: Concrete works-foundations
A14: 3.1 | B14: Cast strip foundations with 20Mpa concrete | C14: m3 | D14: 10
A16: 4 | B16: DPC
A17: 4.1 | B17: Dpc under walls | C17: m | D17: 60
A19: 5 | B19: Brickwork sub structure
A20: 5.1 | B20: one brickwall | C20: m2 | D20: 6 | E20: rate only
A21: 5.2 | B21: Half brickwall | C21: m2 | D21: 30
A22: 5.3 | B22: Brickforce in every course | C22: m | D22: 200
A24: 6 | B24: Filling
A25: 6.1 | B25: Use filling from excavations and compact | C25: m3 | D25: 4
A26: 6.2 | B26: Use imported approved gravel filling and compact | C26: m3 | D26: 12
A28: 7 | B28: DPM
A29: 7.1 | B29: Install 250mm micron damp proof membrane under concrete slab | C29: m2 | D29: 40
A31: 8 | B31: Electrical-first installation
A32: 8.1 | B32: Allow electrical installation for db sleeves under floor | C32: Pc Sum | D32: 1 | E32: 6000 | F32: 6000.00
A33: 8.2 | B33: Allow for installation of complete high must light on Site (cabling, Concrete footing, connection, and commission). The light must be both electrical and solar dependant | C33: sum | D33: 1
A35: 9 | B35: Plumbing -first installation
A36: 9.1 | B36: Allow sleeves for under floor slab | C36: pc sum | D36: 1 | E36: 6000 | F36: 6000.00
A38: 10 | B38: Concrete works-floor slab
A39: 10.1 | B39: Cast floor slab 75mm thick | C39: m3 | D39: 4
A41: 11 | B41: Dpc under walls
A42: 11.1 | B42: 110mm walls | C42: m | D42: 12
A43: 11.2 | B43: 220mm walls | C43: m | D43: 40
A45: 12 | B45: Brickwork superstructure
A46: 12.1 | B46: One brickwall | C46: m2 | D46: 100
A47: 12.2 | B47: Half brickwall | C47: m2 | D47: 30
A49: 13 | B49: Brickforce
A50: 13.1 | B50: 110mm brickforce | C50: m | D50: 150
A51: 13.2 | B51: 220mm brickforse | C51: m | D51: 200
A52: 13.3 | B52: Allow for 6mm double anchor roof wires | C52: each | D52: 12
A54: 14 | B54: Pre-cast lintels
A55: 14.1 | B55: SABS Approved concrete lintels | C55: no | D55: 12
A57: 15 | B57: Steel windows
A58: 15.1 | B58: Type NC2F windows | C58: no | D58: 4
A59: 15.2 | B59: Type W1 windows (1.2x1.2m) | C59: no | D59: 4
A61: 16 | B61: Steel door frames
A62: 16.4 | B62: Steel door frames | C62: no | D62: 2
A63: 16.5 | B63: Steel door -Heavy duty bugler door with lock | C63: no | D63: 2
A65: 17 | B65: Timber doors
A66: 17.1 | B66: Meranti open braced door | C66: each | D66: 2
A67: 17.2 | B67: Veneer internal door | C67: each | D67: 4
A68: Subtotal carried to next page
A136: D: Total Summary Page for Building Works
A137: Item | B137: Description | F137: amount
A138: 2 | B138: Earthworks
A139: 3 | B139: Concrete works-foundations
A140: 4 | B140: DPC
A141: 5 | B141: Brickwork sub structure
A142: 6 | B142: Filling
A143: 7 | B143: DPM
A144: 8 | B144: Electrical-first installation
A145: 9 | B145: Plumbing -first installation
A146: 10 | B146: Concrete works-floor slab
A147: 11 | B147: Dpc under walls
A148: 12 | B148: Brickwork superstructure
A149: 13 | B149: Brickforce
A150: 14 | B150: Pre-cast lintels
A151: 15 | B151: Steel windows
A152: 16 | B152: Steel door frames/Steel door
A153: 17 | B153: Timber doors
A154: 18 | B154: Locksets
A155: 19 | B155: Plumbing
A156: 20 | B156: Electrical
A157: 21 | B157: Glazing
A158: 22 | B158: Window sills
A159: 23 | B159: Ceilings
A160: 24 | B160: Roofing
A161: 25 | B161: Fascias and Bargeboards
A162: 26 | B162: Plastering
A163: 27 | B163: Painting
A164: 28 | B164: Gutters and downpipes
A165: 29 | B165: Tiles
A166: 30 | B166: Renovation of Pump Station 1
B167: SUB-TOTAL BILL D TO MAIN SUMMARY PAGE

Sheet Building 2
A2: METSIMAHOLO LOCAL MUNICIPALITY
B3: Amount brought forward from previous page
A4: Item | B4: Description | C4: unit | D4: quant | E4: rate | F4: amount
A5: 18 | B5: Locksets
A6: 18.1 | B6: four lever locksets | C6: each | D6: 2
A7: 18.2 | B7: three lever locksets | C7: each | D7: 4
A9: 19 | B9: Plumbing
A10: 19.1 | B10: PC Amount for Plumbing as per plan | C10: Pc Sum | D10: 1 | E10: 70000 | F10: 70000.00
A12: 20 | B12: Electrical
A13: 20.1 | B13: PC Amount for electrical as per plan | C13: Pc Sum | D13: 1 | E13: 40000 | F13: 40000
A15: 21 | B15: Glazing
A16: 21.1 | B16: 4mm obscure glass to bathroom windows | C16: m2 | D16: 10
A17: 21.2 | B17: 6mm Safety glass to w1 windows | C17: m2 | D17: 10
A19: 22 | B19: Windowsills
A20: 22.1 | B20: 10mm approved fibre cement internal windowsills | C20: m | D20: 12
A21: 22.2 | B21: Approved concrete external windowsills | C21: m | D21: 12
A22: 22.3 | B22: Dpc to underside of sills | C22: m | D22: 12
A24: 23 | B24: Ceilings
A25: 23.1 | B25: Pvc ceilings on Branderings to supplier’s details | C25: m2 | D25: 32
A26: 23.2 | B26: Approved Cornice with Approved glue | C26: m | D26: 72
A28: 24 | B28: Roofing
A29: 24.1 | B29: Allow pc sum for trusses and purlins | C29: pc | D29: 1 | E29: 30000 | F29: 30000.00
A31: 25 | B31: Fascia’s and Bargeboards
A32: 25.1 | B32: 230mm Fascia | C32: m | D32: 23
A33: 25.2 | B33: 230mm Bargeboards | C33: m | D33: 40
A35: 26 | B35: Plastering
A36: 26.1 | B36: 15mm plaster to internal and external walls | C36: m2 | D36: 180
A37: 26.2 | B37: EO for Corners | C37: m | D37: 56
A38: 26.3 | B38: 25mm screed to floors | C38: m2 | D38: 30
A40: 27 | B40: Painting
A41: 27.1 | B41: Plaster undercoat | C41: m2 | D41: 180
A42: 27.2 | B42: 2 layers Dulux Paint to walls | C42: m2 | D42: 180
A43: 27.3 | B43: 2 layers enamel paint to steel windows and door frames including primer coat | C43: m2 | D43: 80
A45: 28 | B45: Gutters and downpipes
A46: 28.1 | B46: Approved gutters on gutter brackets | C46: m | D46: 10
A47: 28.2 | B47: Approved downpipes with approved holder bats | C47: m | D47: 6
A49: 29 | B49: Tiles
A50: 29.1 | B50: Ceramic floor tiles to floors | C50: m2 | D50: 30
A51: 29.2 | B51: 150mm white glazed tiles to walls and splash tiles at basins and sinks | C51: m2 | D51: 4
A53: 30 | B53: Renovation of Existing Pump Station 1
A54: 30.1 | B54: Replacement of the existing roof structure (old trusses and old roof sheets) with steel roof structure and new roof sheets with new gutters and ceiling, paint work, replace existing wooden door with steel door, waterproofing the pump house | C54: Prov | D54: 1 | E54: 500000 | F54: 500000
B55: total carried to summary page

Sheet Building Summary
A1: Summary
A2: Item | B2: Description | C2: amount
A3: 2 | B3: Earthworks
A4: 3 | B4: Concrete works-foundations
A5: 4 | B5: DPC
A6: 5 | B6: Brickwork sub structure
A7: 6 | B7: Filling
A8: 7 | B8: DPM
A9: 8 | B9: Electical-first installation
A10: 9 | B10: Plumbing -first installation
A11: 10 | B11: Concrete works-floor slab
A12: 11 | B12: Dpc under walls
A13: 12 | B13: Brickwork superstructure
A14: 13 | B14: Brickforce
A15: 14 | B15: Pre-cast lintels
A16: 15 | B16: Steel windows
A17: 16 | B17: Steel door frames
A18: 17 | B18: Timber doors
A19: 18 | B19: Locksets
A20: 19 | B20: Plumbing
A21: 20 | B21: Electrical
A22: 21 | B22: Glazing
A23: 22 | B23: Window sills
A24: 23 | B24: Ceilings
A25: 24 | B25: Roofing
A26: 25 | B26: Fascias and Bargeboards
A27: 26 | B27: Plastering
A28: 27 | B28: Painting
A29: 28 | B29: Gutters and downpipes
A30: 29 | B30: Tiles
B32: Sub total Bill D to be Carried to Final Summary

Sheet OHS
A2: METSIMAHOLO LOCAL MUNICIPALITY
A3: Item | B3: Description | C3: unit | D3: quant | E3: rate | F3: amount
B4: BILL E - OCCUPATIONAL
B5: HEALTH & SAFETY
A6: 1 | B6: Notification of Construction Work
B7: Allow for the costs on notification | C7: sum | D7: 1
B8: of the Provincial Director of
B9: construction work Regulation
A10: 2 | B10: Program
B11: Allow for the costs on setting up a
B12: Health and Safety Program
B13: including File on site Regulation 3
B14: & 5. Include the costs to compile
B15: the following documents for the file
B16: to be kept on site.
B17: Copy of Construction Regulations
B18: Copy of tender document
B19: Copy of drawings
B20: Notification of construction work
B21: Letters of appointment
B22: Company safety Policy
B23: Company organogramme
B24: Notice in respect of machinery
B25: Ten commandments of safety
B26: Emergency telephone numbers
B27: List of subcontractors
B28: Proof of Registration with COID
B29: Insurer
B30: Training material
B31: Risk Assessments and method
B32: statements
B33: Registers as specified elsewhere
B34: Safe work procedures
B35: The file shall be a lever arch file
B36: With original colour documents of
B37: acceptable standards.
B38: The file will be expanded during
B39: The project as and when required
B40: By the Client. | C40: sum | D40: 1
A41: 3 | B41: Risk Assessment
B42: Allow for the costs of a competent | C42: sum | D42: 1
B43: person to carry out a Risk
B44: Assessment
A45: 4 | B45: She Co-ordinator
B46: Allow for the appointment of a | C46: months
B47: SHE Coordinator to do monthly
B48: Inspections (Control on SHE
B49: Representative)
A50: 5 | B50: Health & Safety Induction
B51: Trainer
B52: Allow for the appointment of a H & S | C52: sum | D52: 1
B53: Induction Trainer
A54: 6 | B54: Safe Work Procedures
B55: Allow for the costs of setting up | C55: sum | D55: 1
B56: safe work procedures by
B57: competent person.
A58: 7 | B58: She Representative
B59: Allow for the appointment of a | C59: months
B60: SHE Representative to be
B61: permanently on site.
B62: Allow for the following
B63: appointments to be part of the
B64: functions of the
B65: SHE Representative
B66: Accident Investigator
B67: Allow for the appointment of an
B68: Accident Investigator
B69: Construction Vehicle and
B70: Mobile Plant Inspectors
B71: Allow for the appointment of a full
B72: time inspector of construction
B73: vehicles
B74: Hand Tool Inspector
B75: Allow for the appointment of a full
B76: time Hand Tool Inspector
B77: Portable Electrical Equipment
B78: Inspector
B79: Allow for the appointment of a full
B80: time Portable Electrical
B81: Equipment Inspector
B82: Stacking and Storage
B83: Inspector
B84: Allow for the costs of a competent
B85: person to supervise all stacking
B86: and storage
B87: Hygiene and Facility Inspector
B88: Allow for the appointment of a full
B89: time Hygiene and facility
B90: Inspector
B91: Fire Equipment Inspector
B92: Allow for the costs of a competent
B93: person to inspect all fire
B94: equipment
B95: First Aid Box Inspector
B96: Allow for the costs of a competent
B97: person to inspect the first -aid box | C97: Sum
B99: Allow for the following
B100: appointments of personnel
B101: with responsibilities towards
B102: H&S Supervisors
B103: Allow for the appointment of full
B104: time employees as the
B105: construction supervisors
C106: months
B107: Fire Fighting Equipment | C107: ea | D107: 2
B108: Provide 3 kg firefighting
B109: equipment suitable for electrical
B110: fires on each site
B111: First Aid | C111: ea | D111: 1
B113: Allow for the cost of a basic First
B114: Aid Kit and Stretcher
B115: Personal Protective clothing
B116: Provisional rates for the following | C116: ea | D116: 1
B117: Items will be remeasurable
B118: Shoulder length PVC Gloves
B119: Plastic Trousers | C119: ea | D119: 1
B120: Safety Goggles | C120: ea | D120: 1
B121: Gum Boots | C121: ea | D121: 1
B122: Welding Helmet | C122: ea | D122: 1
B123: Gas Welding Safety Goggles | C123: ea | D123: 1
B124: Safety Shoes | C124: ea | D124: 1
B125: Dust Masks | C125: ea | D125: 1
B126: Leather Aprons | C126: ea | D126: 1
B127: Hard Hats | C127: ea | D127: 1
A129: Total Carried to Summary Page

Sheet Final Summary
A2: METSIMAHOLO LOCAL MUNICIPALITY
B3: MAIN TOTAL SUMMARY PAGE | E3: TOTAL AMOUNT
A4: A | B4: P & G,s
A5: B | B5: MECHANICAL WORKS
A6: C | B6: ELECTRICAL WORKS
A7: D | B7: BUILDING WORKS
A8: E | B8: OHS
A9: F | B9: SUB-TOTAL
A10: G | B10: CONTINGENCIES @ 10%
A11: H | B11: TOTAL EXCL VAT
A12: I | B12: VAT @ 15%
A13: J | B13: TOTAL TENDER AMOUNT CARRIED TO FORM OF OFFER
